[Event "2nd Cambridge Open 2024"]
[Site "Cambridge"]
[Date "2024.02.19"]
[Round "2.35"]
[White "Hebden, Mark L"]
[Black "Martyn, Rafe"]
[Result "1/2-1/2"]
[ECO "D31"]
[WhiteElo "2416"]
[BlackElo "2206"]
[Annotator "RC"]
[PlyCount "149"]
[EventDate "2024.02.18"]
[EventType "swiss"]
[EventCountry "ENG"]
[SourceTitle "playchess.com"]
[Source "ChessBase"]
[SourceQuality "1"]
[TimeControl "5400+30"]

1. d4 {[%emt 0:00:16]} d5 {[%emt 0:00:27]} 2. c4 {[%emt 0:00:22]} e6 {[%emt 0:00:10]} 3. Nc3 {[%emt 0:02:47]} a6 {[%emt 0:00:11]} 4. cxd5 {[%emt 0:01:38]} exd5 {[%emt 0:00:04]} 5. Bf4 {[%emt 0:00:13]} Nf6 {[%emt 0:00:20]} 6. e3 {[%emt 0:02:07]} Bd6 {[%emt 0:00:08]} 7. Bg3 {[%emt 0:05:20]} O-O {[%emt 0:03:54]} 8. Bd3 {[%emt 0:01:15]} c5 {[%emt 0:09:28]} 9. Bxd6 {[%emt 0:03:57]} Qxd6 {[%emt 0:00:05]} 10. dxc5 {[%emt 0:00:12]} Qxc5 {[%emt 0:00:04]} 11. Nge2 {[%emt 0:00:20]} Nc6 {[%emt 0:03:18]} 12. O-O {[%emt 0:00:25]} Bg4 {[%emt 0:09:09]} 13. Rc1 {[%emt 0:01:15]} Qb4 {[%emt 0:06:31]} 14. Na4 {[%emt 0:06:52]} Rad8 {[%emt 0:02:39]} 15. a3 {[%emt 0:10:57]} Qe7 {[%emt 0:02:24]} 16. h3 {[%emt 0:05:51]} Bh5 {[%emt 0:14:00]} 17. Qb3 {[%emt 0:02:03]} d4 {[%emt 0:20:19]} 18. Nxd4 {[%emt 0:01:02]} Nxd4 {[%emt 0:00:05]} 19. exd4 {[%emt 0:00:08]} Rxd4 {[%emt 0:00:13]} 20. Rfe1 {[%emt 0:01:28]} Qd6 {[%emt 0:01:53]} 21. Bf1 {[%emt 0:01:30]} Ne4 {[%emt 0:02:00]} 22. Nc3 {[%emt 0:09:25]} Nc5 {[%emt 0:02:51]} 23. Qc2 {[%emt 0:00:37]} Bg6 {[%emt 0:01:28]} 24. Nb5 {[%emt 0:00:47]} Bxc2 {[%emt 0:09:43]} 25. Nxd6 {[%emt 0:00:11]} Rxd6 {[%emt 0:00:19]} 26. Rxc2 {[%emt 0:00:10]} Ne6 {[%emt 0:00:10]} 27. Bc4 {[%emt 0:05:26]} Rc8 {[%emt 0:00:46]} 28. Bxe6 {[%emt 0:00:18]} Rxc2 {[%emt 0:00:37]} 29. Bf5 {[%emt 0:00:09]} Re6 {[%emt 0:01:03]} 30. Rd1 {[%emt 0:02:13]} Rce2 {[%emt 0:01:16]} 31. Bxe6 {[%emt 0:00:32]} fxe6 {[%emt 0:00:03]} 32. Rd8+ {[%emt 0:00:06]} Kf7 {[%emt 0:00:04]} 33. Rd7+ {[%emt 0:00:05]} Kf6 {[%emt 0:00:32]} 34. Rxb7 {[%emt 0:00:05]} a5 {[%emt 0:08:06]} 35. b4 {[%emt 0:02:45]} axb4 {[%emt 0:00:04]} 36. axb4 {[%emt 0:00:08]} Rb2 {[%emt 0:00:07]} 37. b5 {[%emt 0:01:00]} h5 {[%emt 0:02:13]} 38. h4 {[%emt 0:00:39]} Kg6 {[%emt 0:00:11]} 39. b6 {[%emt 0:00:27]} Kf6 {[%emt 0:00:06]} 40. g3 {[%emt 0:00:40]} Kg6 {[%emt 0:00:12]} 41. Rb8 {[%emt 0:00:59]} Kf6 {[%emt 0:00:35]} 42. b7 {[%emt 0:02:11]} Kg6 {[%emt 0:00:43]} 43. f4 {[%emt 0:00:53]} Kf7 {[%emt 0:01:27]} 44. Kf1 {[%emt 0:04:10]} Rb1+ {[%emt 0:00:11]} 45. Ke2 {[%emt 0:00:32]} Rb2+ {[%emt 0:00:05]} 46. Kd3 {[%emt 0:00:15]} Rb3+ {[%emt 0:01:37]} 47. Kc4 {[%emt 0:01:12]} Rb1 {[%emt 0:00:06]} 48. Rh8 {[%emt 0:00:48]} Rxb7 {[%emt 0:00:08]} 49. Rxh5 {[%emt 0:00:06]} Rd7 {[%emt 0:00:57]} 50. Rg5 {[%emt 0:02:02]} Rd1 {[%emt 0:00:09]} 51. Kc3 {[%emt 0:00:12]} Kf6 {[%emt 0:02:02]} 52. Kc2 {[%emt 0:00:16]} Rd4 {[%emt 0:00:10]} 53. h5 {[%emt 0:01:48]} Kf7 {[%emt 0:00:11]} 54. Kc3 {[%emt 0:03:18]} Rd1 {[%emt 0:00:08]} 55. Kc4 {[%emt 0:00:15]} Kf6 {[%emt 0:00:15]} 56. Kc5 {[%emt 0:04:26]} Kf7 {[%emt 0:00:24]} 57. Re5 {[%emt 0:01:54]} Rg1 {[%emt 0:01:35]} 58. Re3 {[%emt 0:00:37]} Rd1 {[%emt 0:00:55]} 59. Kc4 {[%emt 0:01:39]} Rh1 {[%emt 0:00:15]} 60. Re5 {[%emt 0:01:26]} Rg1 {[%emt 0:00:07]} 61. Rg5 {[%emt 0:00:21]} Rd1 {[%emt 0:00:02]} 62. f5 {[%emt 0:00:27]} exf5 {[%emt 0:00:08]} 63. Rxf5+ {[%emt 0:00:01]} Ke6 {[%emt 0:00:17]} 64. Rg5 {[%emt 0:00:31]} Kf6 {[%emt 0:00:16]} 65. Rg6+ {[%emt 0:00:10]} Kf7 {[%emt 0:00:03]} 66. g4 {[%emt 0:00:14]} Rd2 {[%emt 0:00:35]} 67. Rg5 {[%emt 0:01:55]} Kf6 {[%emt 0:00:21]} 68. Rf5+ {[%emt 0:00:25]} Ke6 {[%emt 0:00:02]} 69. Kc3 {[%emt 0:00:31]} Rd1 {[%emt 0:00:05]} 70. Rf4 {[%emt 0:00:14]} Rd8 {[%emt 0:00:37]} 71. Rd4 {[%emt 0:00:38]} Rxd4 {[%emt 0:00:36]} 72. Kxd4 {[%emt 0:00:02]} Kf6 {[%emt 0:00:06]} 73. Ke4 {[%emt 0:00:04]} Kg5 {[%emt 0:00:03]} 74. Kf3 {[%emt 0:00:06]} g6 {[%emt 0:00:02]} 75. Ke4 {[%emt 0:03:51]} 1/2-1/2

[Event "2nd Cambridge Open 2024"]
[Site "Cambridge"]
[Date "2024.02.19"]
[Round "2.36"]
[White "Dishman, Stephen"]
[Black "Hutchinson, Paul A"]
[Result "1-0"]
[ECO "B08"]
[WhiteElo "2273"]
[BlackElo "2013"]
[Annotator "TA"]
[PlyCount "77"]
[EventDate "2024.02.18"]
[EventType "swiss"]
[EventCountry "ENG"]
[SourceTitle "playchess.com"]
[Source "ChessBase"]
[SourceQuality "1"]
[TimeControl "5400+30"]

{[%evp 12,77,31,43,110,105,100,117,140,126,283,272,267,266,257,255,257,220,199,159,177,184,183,179,181,177,176,179,218,241,230,230,263,220,326,276,273,246,570,547,550,552,656,713,733,802,796,803,743,615,905,891,826,785,852,841,930,793,1202,1107,1706,1566,2907,2870,29991,29992,29992,29993]} 1. Nf3 {[%emt 0:00:03]} g6 {[%emt 0:00:12]} 2. e4 {[%emt 0:00:23]} d6 {[%emt 0:00:08]} 3. d4 {[%emt 0:00:15]} Bg7 {[%emt 0:00:06]} 4. Be3 {[%emt 0:00:09]} Nf6 {[%emt 0:00:12]} 5. Nc3 {[%emt 0:00:19]} c6 {[%emt 0:02:28]} 6. Qd2 {[%emt 0:00:48]} b5 {[%emt 0:01:06][%cal Bb7b5,Bb5b4][%mdl 32]} 7. Bd3 {[%emt 0:00:46]} a5 {[%emt 0:01:26]} (7... O-O $14) 8. Bh6 $16 {[%emt 0:01:39][%cal Be3h6,Bh6g5,Bg5h4][%mdl 32]} O-O {[%emt 0:01:19]} 9. e5 {[%emt 0:05:20]} b4 {[%emt 0:08:17] White is better.} 10. Ne2 {[%emt 0:03:25] White is more active.} ({Much less strong is} 10. exf6 $6 bxc3 11. bxc3 (11. fxg7 $2 {is the wrong capture.} cxd2+ 12. Nxd2 Re8 $19) 11... exf6 $11) 10... Nd5 {[%emt 0:03:03] [#]} (10... dxe5 $16 11. dxe5 Bxh6 12. Qxh6 Ng4) 11. h4 $1 $18 {[%emt 0:02:36][%cal Bh2h4,Bh4h5][%mdl 32] Strongly threatening h5.} f6 {[%emt 0:15:39]} 12. h5 {[%emt 0:05:01]} g5 {[%emt 0:00:25] [#]} 13. Bxg5 {[%emt 0:04:46][%mdl 512]} Rf7 {[%emt 0:10:25]} (13... fxe5 14. dxe5) 14. exf6 {[%emt 0:10:35]} exf6 {[%emt 0:01:04]} 15. Bh4 {[%emt 0:02:42]} Qf8 {[%emt 0:01:12]} 16. c4 {[%emt 0:07:51]} bxc3 {[%emt 0:02:55]} 17. bxc3 {[%emt 0:00:20]} ({Don't take} 17. Nxc3 $6 Bh6 18. Qd1 Nf4 $14) 17... Bh6 {[%emt 0:00:21]} 18. Qc2 {[%emt 0:00:47]} Bg4 {[%emt 0:09:21]} 19. Bf5 {[%emt 0:05:38] Prevents Nd7} Qg7 {[%emt 0:03:24]} 20. Qe4 {[%emt 0:09:04]} Bxf5 {[%emt 0:05:08]} 21. Qxf5 {[%emt 0:00:25]} Nd7 {[%emt 0:00:28]} 22. O-O {[%emt 0:03:38]} Re8 {[%emt 0:00:56]} (22... N7b6 {was called for.} 23. Rfe1 Re8) 23. Ng3 {[%emt 0:02:26]} Rfe7 {[%emt 0:09:33]} 24. Rfe1 {[%emt 0:05:21]} Qf7 $2 {[%emt 0:04:44]} (24... Rxe1+ {is tougher.} 25. Rxe1 Rxe1+ 26. Nxe1 N7b6) 25. Rxe7 {[%emt 0:02:59]} Rxe7 {[%emt 0:00:08]} 26. Qg4+ {[%emt 0:02:26]} Kh8 {[%emt 0:09:11]} 27. Nf5 {[%emt 0:00:25][%csl LRd6,LRe7,LRh6]} Bf8 {[%emt 0:00:10]} 28. Nxe7 {[%emt 0:01:24]} Qxe7 {[%emt 0:00:07]} 29. c4 {[%emt 0:02:47]} N5b6 {[%emt 0:00:51]} 30. Rc1 {[%emt 0:01:31]} Bh6 {[%emt 0:00:52][%cal Bf8h6,Bh6d2,Bd2c3][%mdl 32]} 31. Re1 {[%emt 0:02:35][%cal Bc1e1,Be1e2,Be2e7][%mdl 32]} Qf7 {[%emt 0:01:20] [#]} 32. c5 $1 {[%emt 0:02:44]} dxc5 {[%emt 0:00:39]} 33. dxc5 {[%emt 0:00:06]} Nxc5 {[%emt 0:01:08][%cal Bd7c5,Bc5b7,Bb7d6][%mdl 32]} 34. Qf5 {[%emt 0:01:13][%csl LRc5,LRf6]} Nbd7 {[%emt 0:00:24]} 35. Nd4 {[%emt 0:03:15]} Bd2 {[%emt 0:02:06]} 36. Re2 {[%emt 0:01:15]} Bc3 {[%emt 0:00:06]} 37. Nxc6 {[%emt 0:02:01] Re7 would now be deadly.} Nb7 {[%emt 0:00:59]} 38. Re7 {[%emt 0:01:26]} Nd6 {[%emt 0:00:29]} 39. Qxd7 {[%emt 0:00:40] White took control after the opening.   Weighted Error Value: White=0.17 (very precise) /Black=0.69.  Mistake:       	---       	Black=3      OK:         	White=6     	Black=8      Best:        	White=3     	---        Strong:       	White=1     	---        Brilliant:      	White=1     	---} 1-0

[Event "2nd Cambridge Open 2024"]
[Site "Cambridge"]
[Date "2024.02.19"]
[Round "2.37"]
[White "Mocic, Ivano"]
[Black "Bradbury, Neil H"]
[Result "1/2-1/2"]
[ECO "D02"]
[WhiteElo "2008"]
[BlackElo "2217"]
[Annotator "RC"]
[PlyCount "84"]
[EventDate "2024.02.18"]
[EventType "swiss"]
[EventCountry "ENG"]
[SourceTitle "playchess.com"]
[Source "ChessBase"]
[SourceQuality "1"]
[TimeControl "5400+30"]

1. d4 {[%emt 0:00:04]} Nf6 {[%emt 0:00:11]} 2. Nf3 {[%emt 0:00:11]} e6 {[%emt 0:00:21]} 3. Bf4 {[%emt 0:00:28]} c5 {[%emt 0:02:18]} 4. e3 {[%emt 0:00:27]} b6 {[%emt 0:01:53]} 5. Nbd2 {[%emt 0:03:20]} Bb7 {[%emt 0:03:33]} 6. Bd3 {[%emt 0:03:14]} Be7 {[%emt 0:04:09]} 7. h3 {[%emt 0:02:47]} O-O {[%emt 0:04:42]} 8. O-O {[%emt 0:00:42]} d5 {[%emt 0:02:18]} 9. c3 {[%emt 0:00:22]} Nbd7 {[%emt 0:08:57]} 10. Qc2 {[%emt 0:05:24]} Qc8 {[%emt 0:02:09]} 11. Rfe1 {[%emt 0:05:28]} c4 {[%emt 0:05:54]} 12. Bf1 {[%emt 0:00:14]} b5 {[%emt 0:00:02]} 13. Ne5 {[%emt 0:00:28]} Nxe5 {[%emt 0:06:42]} 14. dxe5 {[%emt 0:02:53]} Nd7 {[%emt 0:00:08]} 15. e4 {[%emt 0:00:12]} Nc5 {[%emt 0:06:26]} 16. exd5 {[%emt 0:01:00]} Bxd5 {[%emt 0:02:40]} 17. Be3 {[%emt 0:07:25]} Qc6 {[%emt 0:01:31]} 18. Bxc5 {[%emt 0:05:33]} Bxc5 {[%emt 0:00:18]} 19. Ne4 {[%emt 0:01:06]} Be7 {[%emt 0:07:17]} 20. g3 {[%emt 0:02:50]} f5 {[%emt 0:01:26]} 21. exf6 {[%emt 0:01:24]} gxf6 {[%emt 0:00:02]} 22. Qe2 {[%emt 0:10:45]} f5 {[%emt 0:01:33]} 23. Nd2 {[%emt 0:00:40]} Bc5 {[%emt 0:00:23]} 24. b4 {[%emt 0:06:47]} Bb6 {[%emt 0:01:04]} 25. Kh2 {[%emt 0:06:13]} a5 {[%emt 0:10:51]} 26. a3 {[%emt 0:00:47]} Bd8 {[%emt 0:08:59]} 27. a4 {[%emt 0:05:28]} Bf6 {[%emt 0:02:13]} 28. axb5 {[%emt 0:03:53]} Qxb5 {[%emt 0:01:44]} 29. Reb1 {[%emt 0:14:09]} Bxc3 {[%emt 0:07:48]} 30. Rxa5 {[%emt 0:02:39]} Rxa5 {[%emt 0:00:24]} 31. bxa5 {[%emt 0:00:08]} Qxa5 {[%emt 0:05:20]} 32. Nxc4 {[%emt 0:00:11]} Qc5 {[%emt 0:01:20]} 33. Ne3 {[%emt 0:06:20]} f4 {[%emt 0:00:42]} 34. Qg4+ {[%emt 0:02:36]} Kh8 {[%emt 0:00:01]} 35. gxf4 {[%emt 0:00:12]} Rg8 {[%emt 0:00:16]} 36. Qe2 {[%emt 0:00:58]} Be4 {[%emt 0:00:50]} 37. Rd1 {[%emt 0:00:58]} Qc7 {[%emt 0:01:25]} 38. Ng2 {[%emt 0:00:26]} Bxg2 {[%emt 0:01:04]} 39. Bxg2 {[%emt 0:00:07]} Qxf4+ {[%emt 0:00:04]} 40. Kg1 {[%emt 0:00:25]} Be5 {[%emt 0:00:01]} 41. Kf1 {[%emt 0:00:33]} Rb8 {[%emt 0:00:49]} 42. Qf3 {[%emt 0:00:55]} Qxf3 {[%emt 0:00:37]} 1/2-1/2

[Event "2nd Cambridge Open 2024"]
[Site "Cambridge"]
[Date "2024.02.19"]
[Round "2.38"]
[White "Karamsetty, Jeevan"]
[Black "McClement, Andrew"]
[Result "1/2-1/2"]
[ECO "B23"]
[WhiteElo "2211"]
[BlackElo "2223"]
[Annotator "RC"]
[PlyCount "90"]
[EventDate "2024.02.18"]
[EventType "swiss"]
[EventCountry "ENG"]
[SourceTitle "playchess.com"]
[Source "ChessBase"]
[SourceQuality "1"]
[TimeControl "5400+30"]

1. e4 {[%emt 0:00:04]} c5 {[%emt 0:00:09]} 2. Nc3 {[%emt 0:00:02]} Nc6 {[%emt 0:00:02]} 3. Bb5 {[%emt 0:00:07]} Nd4 {[%emt 0:00:04]} 4. Bc4 {[%emt 0:00:05]} e6 {[%emt 0:00:02]} 5. Nge2 {[%emt 0:00:07]} Nf6 {[%emt 0:00:04]} 6. O-O {[%emt 0:00:14]} a6 {[%emt 0:00:09]} 7. a4 {[%emt 0:00:06]} d5 {[%emt 0:02:14]} 8. exd5 {[%emt 0:00:07]} exd5 {[%emt 0:00:04]} 9. Ba2 {[%emt 0:00:06]} Nxe2+ {[%emt 0:01:35]} 10. Qxe2+ {[%emt 0:01:20]} Be6 {[%emt 0:01:51]} 11. d3 {[%emt 0:03:47]} Be7 {[%emt 0:00:06]} 12. Bf4 {[%emt 0:03:59]} O-O {[%emt 0:00:19]} 13. Rfe1 {[%emt 0:06:11]} b6 {[%emt 0:09:08]} 14. Qd2 {[%emt 0:22:31]} Qd7 {[%emt 0:00:45]} 15. Ne2 {[%emt 0:04:19]} b5 {[%emt 0:01:40]} 16. c3 {[%emt 0:09:00]} Qb7 {[%emt 0:16:39]} 17. Bb3 {[%emt 0:06:31]} Rfd8 {[%emt 0:02:24]} 18. Ng3 {[%emt 0:04:35]} Rac8 {[%emt 0:11:20]} 19. axb5 {[%emt 0:06:06]} axb5 {[%emt 0:00:13]} 20. d4 {[%emt 0:00:27]} b4 {[%emt 0:02:40]} 21. Bd1 {[%emt 0:04:56]} bxc3 {[%emt 0:02:15]} 22. bxc3 {[%emt 0:01:13]} cxd4 {[%emt 0:00:17]} 23. cxd4 {[%emt 0:03:17]} Ne4 {[%emt 0:13:15]} 24. Qe2 {[%emt 0:00:57]} Bb4 {[%emt 0:02:46]} 25. Nxe4 {[%emt 0:07:37]} dxe4 {[%emt 0:01:36]} 26. Qb2 {[%emt 0:01:28]} Rxd4 {[%emt 0:01:57]} 27. Qxd4 {[%emt 0:04:38]} Bxe1 {[%emt 0:00:13]} 28. Rc1 {[%emt 0:01:56]} h6 {[%emt 0:06:06]} 29. Bc2 {[%emt 0:01:25]} Bd5 {[%emt 0:07:56]} 30. Rb1 {[%emt 0:02:53]} Bc3 {[%emt 0:00:33]} 31. Qd1 {[%emt 0:01:26]} Qa8 {[%emt 0:01:43]} 32. Be3 {[%emt 0:01:05]} Bf6 {[%emt 0:10:33]} 33. Bb3 {[%emt 0:01:02]} Bxb3 {[%emt 0:01:05]} 34. Qxb3 {[%emt 0:00:02]} Rd8 {[%emt 0:00:47]} 35. g3 {[%emt 0:00:42]} Bg5 {[%emt 0:00:51]} 36. Bxg5 {[%emt 0:01:29]} hxg5 {[%emt 0:00:01]} 37. Qe3 {[%emt 0:00:17]} Qd5 {[%emt 0:02:33]} 38. Re1 {[%emt 0:00:59]} Re8 {[%emt 0:02:01]} 39. Rc1 {[%emt 0:00:09]} f6 {[%emt 0:01:01]} 40. Re1 {[%emt 0:01:23]} Re5 {[%emt 0:00:24]} 41. Rc1 {[%emt 0:00:34]} Qd3 {[%emt 0:00:55]} 42. Qxd3 {[%emt 0:01:17]} exd3 {[%emt 0:00:02]} 43. Rd1 {[%emt 0:00:01]} Rd5 {[%emt 0:00:18]} 44. Kg2 {[%emt 0:00:40]} g4 {[%emt 0:00:54]} 45. f3 {[%emt 0:00:43]} gxf3+ {[%emt 0:00:47]} 1/2-1/2

[Event "2nd Cambridge Open 2024"]
[Site "Cambridge"]
[Date "2024.02.19"]
[Round "2.39"]
[White "Gluma, Christian"]
[Black "Blauhut, Holger"]
[Result "1-0"]
[ECO "C54"]
[WhiteElo "2256"]
[BlackElo "2016"]
[Annotator "TA"]
[PlyCount "161"]
[EventDate "2024.02.18"]
[EventType "swiss"]
[EventCountry "ENG"]
[SourceTitle "playchess.com"]
[Source "ChessBase"]
[SourceQuality "1"]
[TimeControl "5400+30"]

1. e4 {[%emt 0:00:04]} e5 {[%emt 0:00:07]} 2. Nf3 {[%emt 0:00:04]} Nc6 {[%emt 0:00:07]} 3. Bc4 {[%emt 0:00:04]} Bc5 {[%emt 0:00:25]} 4. c3 {[%emt 0:00:05]} Nf6 {[%emt 0:00:14]} 5. d3 {[%emt 0:00:07]} a6 {[%emt 0:00:36]} 6. Nbd2 {[%emt 0:01:03]} Ba7 {[%emt 0:01:53]} 7. h3 {[%emt 0:01:28]} h6 {[%emt 0:00:38]} 8. Nf1 {[%emt 0:01:47]} d5 {[%emt 0:04:39]} 9. exd5 {[%emt 0:00:51]} Nxd5 {[%emt 0:00:02]} 10. Ne3 {[%emt 0:11:13]} Nxe3 {[%emt 0:07:47]} 11. Bxe3 {[%emt 0:01:51]} Bxe3 {[%emt 0:02:46]} 12. fxe3 {[%emt 0:00:08]} Qd6 {[%emt 0:02:04]} 13. O-O {[%emt 0:02:23]} Be6 {[%emt 0:04:39]} 14. Bxe6 {[%emt 0:02:37]} Qxe6 {[%emt 0:00:10]} 15. d4 {[%emt 0:00:49]} O-O-O {[%emt 0:05:24]} 16. Qc2 {[%emt 0:12:39]} g5 {[%emt 0:03:53]} 17. Nh2 {[%emt 0:07:07]} Ne7 {[%emt 0:04:48]} 18. Ng4 {[%emt 0:04:35]} exd4 {[%emt 0:09:13]} 19. exd4 {[%emt 0:00:33]} f5 {[%emt 0:00:17]} 20. Rae1 {[%emt 0:01:46]} Qd6 {[%emt 0:00:28]} 21. Ne5 {[%emt 0:03:19]} Rdf8 {[%emt 0:00:44]} 22. Nc4 {[%emt 0:07:15]} Qd7 {[%emt 0:03:38]} 23. Qb3 {[%emt 0:03:12]} Rf6 {[%emt 0:05:19]} 24. Rf2 {[%emt 0:04:30]} (24. Ne5 $16 Qd5 25. Ng4) 24... f4 {[%emt 0:06:54]} 25. Ne5 {[%emt 0:05:23]} Qd5 {[%emt 0:02:46]} 26. Ng4 {[%emt 0:02:23]} Qxb3 {[%emt 0:03:50]} (26... Rb6 $1 $11 27. Qa4 Nf5) 27. axb3 $14 {[%emt 0:00:05]} Rf7 {[%emt 0:00:07]} 28. Rfe2 {[%emt 0:01:05]} Kd8 {[%emt 0:04:51]} 29. Ne5 {[%emt 0:03:33]} ({White should play} 29. Kf2 $16) 29... Rg7 {[%emt 0:02:21]} (29... Rf6 $14) 30. Nd3 $1 $16 {[%emt 0:00:35]} b6 {[%emt 0:02:02]} 31. Ra1 {[%emt 0:05:01]} Kc8 {[%emt 0:03:43]} 32. Rxa6 {[%emt 0:00:32]} Kb7 {[%emt 0:00:04]} 33. Ra1 {[%emt 0:00:24]} Nf5 {[%emt 0:00:24]} 34. Rae1 {[%emt 0:05:23]} (34. Re6 $142) 34... Nh4 {[%emt 0:06:36]} 35. Re7 {[%emt 0:01:36]} Rxe7 {[%emt 0:01:05]} 36. Rxe7 {[%emt 0:00:06]} Ra8 {[%emt 0:00:22]} 37. Kf2 {[%emt 0:01:33]} Nf5 {[%emt 0:03:36]} ({Black should try} 37... Ra1 $1 $14) 38. Re1 {[%emt 0:01:34]} Kc6 {[%emt 0:02:41]} (38... c5 $16) 39. Re5 {[%emt 0:03:12]} (39. Re6+ $1 $18 {is the precise move to win.} Kb7 40. Rf6) 39... Ng3 {[%emt 0:00:59]} 40. Kf3 {[%emt 0:02:11]} Kd7 {[%emt 0:00:36]} 41. h4 {[%emt 0:01:25]} gxh4 {[%emt 0:01:38]} (41... Ra1 $16 {is a better defense.}) 42. Kxf4 {[%emt 0:00:54]} Ra1 {[%emt 0:00:45]} (42... Rg8 $16 43. Kf3 Rg7) 43. Re1 $18 {[%emt 0:01:52]} Ra8 {[%emt 0:01:05]} 44. Ne5+ $1 {[%emt 0:00:25]} Kd6 {[%emt 0:02:29]} 45. Kg4 {[%emt 0:00:36]} Rg8+ {[%emt 0:00:32]} 46. Kxh4 {[%emt 0:00:25]} Nf5+ {[%emt 0:00:15]} 47. Kh3 {[%emt 0:00:04]} h5 {[%emt 0:00:54]} 48. Rf1 {[%emt 0:00:39]} Ne3 {[%emt 0:00:17]} 49. Rf6+ {[%emt 0:01:04]} Kd5 {[%emt 0:00:13]} 50. Rf2 {[%emt 0:00:42]} c5 {[%emt 0:00:42]} 51. Nf3 {[%emt 0:00:42]} Ke4 {[%emt 0:00:54]} 52. Re2 {[%emt 0:00:49]} (52. dxc5 $1 $18 bxc5 53. Ne1) 52... Kd3 {[%emt 0:02:21]} ({Better is} 52... cxd4 $1 $14 53. Nxd4 Kd3) 53. Rd2+ $18 {[%emt 0:00:07]} Ke4 {[%emt 0:00:01]} 54. dxc5 {[%emt 0:01:51]} bxc5 {[%emt 0:00:01]} 55. Ne1 {[%emt 0:00:49]} Rb8 $2 {[%emt 0:01:33] [#]} (55... Nd5 $16 {keeps fighting.} 56. Re2+ Kf5) 56. b4 {[%emt 0:00:40]} (56. Re2 $142 $1 {Black must now prevent g3.} h4 (56... Rd8 57. g3) 57. Kxh4 (57. Nc2 Kd3 $18)) 56... cxb4 $18 {[%emt 0:00:10]} 57. Rd4+ {[%emt 0:00:10]} Kf5 {[%emt 0:00:23]} 58. Rxb4 {[%emt 0:00:29]} Re8 {[%emt 0:00:35]} 59. Nf3 {[%emt 0:00:34]} Nd1 {[%emt 0:00:35]} 60. Rb5+ {[%emt 0:00:21]} Kf4 {[%emt 0:00:06]} 61. c4 {[%emt 0:00:48]} Re2 {[%emt 0:01:02]} 62. Rxh5 {[%emt 0:00:56]} (62. Ng5 $16 {Strongly threatening g3+.} h4 63. b4 (63. Kxh4 Rxg2 64. Nh3+ Ke3 $14)) 62... Nxb2 {[%emt 0:01:10]} (62... Rxb2 $14 63. Rh4+ Ke3) 63. Rh4+ $16 {[%emt 0:00:08]} Ke3 {[%emt 0:00:10]} 64. Kg3 {[%emt 0:01:11]} Nd3 {[%emt 0:01:15]} 65. Rh8 {[%emt 0:00:29]} Nc5 {[%emt 0:00:34]} 66. Re8+ {[%emt 0:00:19]} Kd3 $2 {[%emt 0:00:02][%mdl 8192]} (66... Ne4+ $16 67. Kh2 Kf4) 67. Rxe2 $18 {[%emt 0:00:13]} Kxe2 {[%emt 0:00:02]} 68. Kf4 {[%emt 0:00:29]} Kd3 {[%emt 0:00:05]} 69. Ne5+ {[%emt 0:00:08]} Kd4 {[%emt 0:00:12]} 70. Kf5 {[%emt 0:00:43]} Nb7 {[%emt 0:01:27]} 71. g4 {[%emt 0:00:25]} Nd6+ {[%emt 0:00:04] [#]} 72. Kf4 $1 {[%emt 0:00:37]} Ne8 {[%emt 0:01:08]} 73. g5 {[%emt 0:00:27]} (73. Kf5 Nd6+ 74. Kf4 Ne8 $18) 73... Ng7 {[%emt 0:00:01]} 74. g6 {[%emt 0:00:13]} Ne6+ {[%emt 0:00:18]} 75. Kf5 {[%emt 0:00:08]} Ng7+ {[%emt 0:00:03]} 76. Kf6 {[%emt 0:00:34]} Nh5+ {[%emt 0:00:07]} 77. Kg5 {[%emt 0:00:42]} Ng7 {[%emt 0:00:02]} 78. Nd3 {[%emt 0:01:30]} Kxc4 {[%emt 0:00:46]} 79. Nf4 {[%emt 0:00:28]} Kd4 {[%emt 0:01:38]} 80. Kf6 {[%emt 0:00:20]} Ne8+ {[%emt 0:00:01]} 81. Ke7 {[%emt 0:00:22]} 1-0